Workbook

Sheet Gliederung
C5: Wählen sie die gewünschte Ansicht

Sheet Verfahrensdaten
A6: Datenblatt zur Erfassung notwendiger Verfahrensdaten
A8: Allgemeine Verfahrensdaten | H8: Hinweis: Einzelne Eingabebereiche sind mit Kommentaren versehen, deren Vorgaben zwingend einzuhalten sind.
A9: Name des Verfahrens | C9: Oberthal-Gronig
A10: Art des Verfahrens | C10: Verfahren nach §91 ff. FlurbG
A11: Hauptzwecke | C11: Verbesserung der Arbeits- und Produktionsbedingungen in der Land- und Forstwirtschaft, Beseitigung der Besitzzersplitterung
A13: Nebenzwecke | C13: Naturschutzbelange, Flächenmanagement Hochwasserschutz
A16: Daten zur Prognose der Verfahrens- und Ausführungskosten
A17: Anzahl der Ordnungsnummern | C17: 1220
A18: Gesamte Verfahrensfläche [ha] | C18: 1170.19
B19: Landwirtschaftliche Fläche [ha] | C19: 828.75
B20: Davon Waldfläche [ha] | C20: 242.56
A21: Anzahl Baumaßnahmen im Rahmen des WuG-Plans nach §41 FlurbG / Ausbauplan | C21: 18
A22: Aktualität des Grundbuchs | C22: Grundbuch lückenhaft
A23: Vermessungstechnische Bearbeitung | C23: Bewirtschaftungsanzeige
A25: Daten zur Prognose der Verfahrenswirkungen
A26: Daten zur Neuordnung der Verfahrensfläche
A27: Neugeordnete landwirtschaftliche Fläche [ha] | C27: =IF(C10="Verfahren nach §91 ff. FlurbG",C19*0.98,C19*0.93) -> 812.175
A28: Neugeordnete Waldfläche [ha] | C28: =IF(C10="Verfahren nach §91 ff. FlurbG",C20*0.98,C20*0.93) -> 237.7088
A29: Anzahl der Flurstücke (Alt) | C29: 4890
A30: Anzahl der Flurstücke (Neu) | C30: 2476
A31: Anzahl der Landwirte im Verfahren | C31: 13
A32: Zusammenlegungsverhältnis Besitzstand | C32: 3:1
A33: Daten zur Vermessung
A34: Fläche der Neuvermessung [ha]
A35: Qualität des vorgefundenen Katasters
B36: Urkataster [%]
B37: Neuvermessung vor 1960 [%]
B38: Neuvermessung 1960-1980 [%]
B39: Neuvermessung nach 1980 [%]
A40: Personalkostensatz/Stunde (bei §91 ff. FlurbG) | C40: =IF(Verfahrenskosten!G7=1,ROUND(320/8,0),ROUND(275/8,0)) -> 34
A41: Daten für Wertschöpfungsbeiträge der Forstwirtschaft
A42: Durchschnittlicher Holzeinschlag vor der Flurbereinigung [Fm/ha] | C42: 2
A43: Durchschnittliche Steigerung der Holznutzung nach der Flurbereinigung Δ [Fm/ha] | C43: 2
A44: Gesamteinschlag nach der Flurbereinigung [Fm/ha] | C44: =C42+C43 -> 4
A45: Daten für Wertschöpfungsbeiträge des Natur- und Umweltschutzes sowie der Landespflege
A46: Ausgewiesene Gewässerschutzstreifen/Retentionsflächen an Bachläufen, Überführung der Flächen in öffentliches Eigentum [ha] | C46: 18
A47: Sachwert weiterer wasserregulierender Maßnahmen [€] | C47: 0
A48: Offengehaltene Kulturlandschaft [ha] | C48: 11.5
A49: Übertragung von Flächen des Natur- und Umweltschutzes an die Kommune etc. [ha] | C49: 24.1
A50: Aufforstungsfläche [ha] | C50: 0
A51: Waldrandaufbau [ha] | C51: 0
A52: Waldumbaufläche hin zu neuen Bewirtschaftungsmöglichkeiten[ha] | C52: 10
A53: Wegebau und -Sanierung in Waldgebieten [ha] | C53: 0
A54: Initialpflegekosten Landespflege Flurbereinigung [€]
B55: Pflegeintensitätsstufe 1 [€] | C55: 0
B56: Pflegeintensitätsstufe 2 [€] | C56: 0
B57: Pflegeintensitätsstufe 3 [€] | C57: 0
B58: Pflegeintensitätsstufe 4 [€] | C58: 54673.47
A59: Unterhaltungskosten der landespflegerischen Maßnahmen [€] | C59: 12750
A60: Fläche mit Biotopkartierung vor Flurbereinigung [ha] | C60: 0
A61: Daten für Wertschöpfungsbeiträge für die Allgemeinheit, Region und Erholung
A62: Sachwert Naturschutzprojekte durch Dritte in Folge des Flächenmanagements [€] | C62: 0
A63: Sachwert kommunaler Planungen in Folge des Flächenmanagements [€] | C63: 4671301.45
A64: Planungskosten Wegebau gemäß §48 HOAI | C64: 114801.55
A65: Lokaler/Örtlicher Hochwasserschutz
B66: jährlich vermiedene Schäden [€] | C66: 0
A67: Sachwert Erholungseinrichtungen in Ausführungskosten [€] | C67: 3142.75
A68: Sachwert Erholungseinrichtungen durch Dritte finanziert [€] | C68: 0
A69: Anzahl errichteter Windkraftanlagen auf Privatbesitz in Folge der Flurbereinigung | C69: 1
A70: Daten für die Wertschöpfungsbeiträge der Sicherung rechtlicher Verhältnisse sowie Vorteile für die öffentliche Hand
A71: Durchschnittlicher Bodenwert landwirtschaftlicher Nutzflächen [€/m²] | C71: 0.65
A72: Unterhaltungskosten der gemeinschaftlichen Anlagen [€] | C72: 0
A73: Zeitliche Dauer der (temporären) Unterhaltung gemeinschaftlicher Anlagen durch die TG in Monaten [d] | C73: 0

Sheet Ausführungskosten
B2: Ausführungskosten nach Art der Maßnahme
B4: Maßnahmen | C4: Ausführungskosten [€]
B5: Wegebau | C5: 3455436.9
B6: Bauwerke | C6: 0
B7: Wasserwirtschaftliche Maßnahmen | C7: 0
B8: Dorferneuerung | C8: 0
B9: Begrünung, Landschaftspflege | C9: 54673.47
B10: Freizeit und Erholung | C10: 1032.33
B11: Vermessungskosten | C11: 0
B12: Wertermittlung | C12: 0
B13: Verwaltungskosten | C13: 12638.83
B14: Ausgleich von Nachteilen | C14: 2873.6
B15: Instandsetzungen zur Herstellung wertgleicher Abfindung | C15: 0
B16: Defizit des Landerwerbs der TG | C16: 0
B17: Sonstiges | C17: 43.1
B19: Gesamtsumme Ausführungskosten | C19: =SUM(C5:C17) -> 3526698.23

Sheet Verfahrenskosten
B6: Meilenstein | C6: Bewertungsansatz | D6: Nettoarbeitstage | F6: Personalkosten pro Nettoarbeitstag
A7: 1 | B7: Vorarbeiten und Einleitung | C7: 50 AT + 20 AT je 100 ha Verfahrensfläche | D7: =ROUND(50+20*(Verfahrensdaten!C18/100),0) -> 284 | F7: Personalmischkostensatz Saarland | G7: 2 | H7: Personalmischkostensatz BMS
A8: 2 | B8: Legitimation | C8: Grundbuch relativ aktuell: 30 AT je 100 Ord.-Nr. Grundbuch lückenhaft: 60 AT je 100 Ord.-Nr. Grundbuch nicht aktuell: 90 AT je 100 Ord.-Nr. | D8: =ROUND(IF(Verfahrensdaten!C22="Grundbuch relativ aktuell",30*(Verfahrensdaten!C17/100),IF(Verfahrensdaten!C22="Grundbuch lückenhaft",60*(Verfahrensdaten!C17/100),IF(Verfahrensdaten!C22="Grundbuch nicht aktuell",90*(Verfahrensdaten!C17/100),"Fehler Schreibweise!"))),0) -> 732
F9: Prozentualer Aufschlag Sachkosten
F10: 0.2136
A11: 3 | B11: Wertermittlung | C11: 30 AT + 80 AT je 100 ha Waldfläche + 0,75 * (30 AT + 80 AT je 100 ha landwirtschaftliche Fläche) Verfahren nach § 91 ff. FlurbG: Faktor 0,75 | D11: =ROUND(IF(Verfahrensdaten!C10="Verfahren nach §91 ff. FlurbG",0.75*(30+80*(Verfahrensdaten!C20/100)+0.75*(30+80*(Verfahrensdaten!C19/100))),30+80*(Verfahrensdaten!C20/100)+0.75*(30+80*(Verfahrensdaten!C19/100))),0) -> 558
A13: 4 | B13: Plan nach § 41 Ausbauplan | C13: 40 AT + 10 AT je Maßnahme | D13: =40+10*Verfahrensdaten!C21 -> 220 | F13: Prozentualer Aufschlag Overheadkosten
F14: 0.0863
A15: 5 | B15: Vermessungs technische Bearbeitung | C15: ohne Abmarkung: 80 AT je 100 ha Verfahrensfläche partielle Abmarkung: 160 AT je 100 ha Verfahrensfläche vollständige Abmarkung: 240 AT je 100 ha Verfahrensfläche Verfahren nach § 91 ff. FlurbG: 40 AT je 100 ha Verfahrensfläche | D15: =ROUND(IF(Verfahrensdaten!C23="Bewirtschaftungsanzeige",40*(Verfahrensdaten!C18/100),IF(Verfahrensdaten!C23="ohne Abmarkung",80*(Verfahrensdaten!C18/100),IF(Verfahrensdaten!C23="partielle Abmarkung",160*(Verfahrensdaten!C18/100),IF(Verfahrensdaten!C23="vollständige Abmarkung",240*(Verfahrensdaten!C18/100),"Fehler Schreibweise!")))),0) -> 468
F16: Kosten externer Vergaben/Dienstleistungen im Rahmen der Verfahrenskosten
F18: 0
A20: 6 | B20: Planerische Arbeiten zur Landabfindung vor Planentwurf, Abfindung | C20: 100 AT + 150 AT je 100 Ord.-Nr. + 50 AT je 100 ha Verfahrensfläche | D20: =ROUND(100+150*(Verfahrensdaten!C17/100)+50*(Verfahrensdaten!C18/100),0) -> 2515
F21: Gesamtsumme der Verfahrenskosten | H21: =(D30+D30*F10)+(F14*(D30+D30*F10))+F18 -> 1957362.973
F24: Gesamtsumme der Ausführungskosten | H24: =Ausführungskosten!C19 -> 3526698.23
A25: 7 | B25: Ausbau und Finanzierung | C25: 20 AT + 10 AT je Maßnahme | D25: =20+10*Verfahrensdaten!C21 -> 200
A27: 8 | B27: Abschluss des Verfahrens | C27: 25 AT je 100 Ord.-Nr. + 10 AT je 100 ha Verfahrensfläche | D27: =ROUND(25*(Verfahrensdaten!C17/100)+10*(Verfahrensdaten!C18/100),0) -> 422 | F27: ∑ | H27: =H24+H21 -> 5484061.203
A30: Summe direkter Personalkosten | D30: =IF(G7=1,(SUM(D7:D28)*320),IF(G7=2,(SUM(D7:D28)*275),"FEHLER!")) -> 1484725
B34: 1 | C34: =D7/C42 -> 0.05260233377
B35: 2 | C35: =D8/C42 -> 0.1355806631
B36: 3 | C36: =D11/C42 -> 0.1033524727
B37: 4 | C37: =D13/C42 -> 0.04074828672
B38: 5 | C38: =D15/C42 -> 0.08668271902
B39: 6 | C39: =D20/C42 -> 0.465827005
B40: 7 | C40: =D25/C42 -> 0.03704389702
B41: 8 | C41: =D27/C42 -> 0.07816262271
C42: =SUM(D7:D28) -> 5399

Sheet Kennzahlen
B6: Rentenbarwertfaktoren für jährlich nachschüssige Zahlungen (Hinz) | L6: Honorare für Grundleistungen bei Verkehsanlagen gem. §48 HOAI | R6: GNotKG - Gebührentabelle B
M7: Honorarzone 1 | S7: Faktor
B8: Jahre | C8: 0.02 | D8: 0.025 | E8: 0.03 | F8: 0.035 | G8: 0.04 | H8: 0.045 | I8: 0.05 | L8: Anrechenbare Kosten [€] | M8: von | N8: bis | R8: Wert bis… | S8: 0.5 | T8: 1 | U8: 2
B9: 1 | C9: 0.98 | D9: 0.976 | E9: 0.971 | F9: 0.966 | G9: 0.962 | H9: 0.957 | I9: 0.952 | L9: 25000 | M9: 3882 | N9: 4624 | R9: 500 | S9: =T9/2 -> 7.5 | T9: 15 | U9: =T9*2 -> 30
B10: 10 | C10: 8.983 | D10: 8.752 | E10: 8.53 | F10: 8.317 | G10: 8.111 | H10: 7.913 | I10: 7.722 | L10: 35000 | M10: 4981 | N10: 5933 | R10: 1000 | S10: =T10/2 -> 9.5 | T10: 19 | U10: =T10*2 -> 38
B11: 15 | C11: 12.849 | D11: 12.381 | E11: 11.938 | F11: 11.517 | G11: 11.118 | H11: 10.74 | I11: 10.38 | L11: 50000 | M11: 6487 | N11: 7727 | R11: 1500 | S11: 11.5 | T11: 23 | U11: 46
B12: 20 | C12: 16.351 | D12: 15.589 | E12: 14.877 | F12: 14.212 | G12: 13.59 | H12: 13.008 | I12: 12.462 | L12: 75000 | M12: 8759 | N12: 10434 | R12: 2000 | S12: 13.5 | T12: 27 | U12: 54
B13: 25 | C13: 19.523 | D13: 18.424 | E13: 17.413 | F13: 16.482 | G13: 15.622 | H13: 14.828 | I13: 14.094 | L13: 100000 | M13: 10839 | N13: 12911 | R13: 3000 | S13: 16.5 | T13: 33 | U13: 66
B14: 30 | C14: 22.396 | D14: 20.93 | E14: 19.6 | F14: 18.392 | G14: 17.292 | H14: 16.289 | I14: 15.372 | L14: 150000 | M14: 14634 | N14: 17432 | R14: 4000 | S14: 19.5 | T14: 39 | U14: 78
B15: 35 | C15: 24.999 | D15: 23.145 | E15: 21.487 | F15: 20.001 | G15: 18.665 | H15: 17.461 | I15: 16.374 | L15: 200000 | M15: 18106 | N15: 21567 | R15: 5000 | S15: 22.5 | T15: 45 | U15: 90
B16: 40 | C16: 27.355 | D16: 25.103 | E16: 23.115 | F16: 21.355 | G16: 19.793 | H16: 18.402 | I16: 17.159 | L16: 300000 | M16: 24435 | N16: 29106 | R16: 6000 | S16: 25.5 | T16: 51 | U16: 102
B17: 45 | C17: 29.49 | D17: 26.833 | E17: 24.519 | F17: 22.495 | G17: 20.72 | H17: 19.156 | I17: 17.774 | L17: 500000 | M17: 35622 | N17: 42433 | R17: 7000 | S17: 28.5 | T17: 57 | U17: 114
B18: 50 | C18: 31.424 | D18: 28.362 | E18: 25.73 | F18: 23.456 | G18: 21.482 | H18: 19.762 | I18: 18.256 | L18: 750000 | M18: 48001 | N18: 57178 | R18: 8000 | S18: 31.5 | T18: 63 | U18: 126
L19: 1000000 | M19: 59267 | N19: 70597 | R19: 9000 | S19: 34.5 | T19: 69 | U19: 138
L20: 1500000 | M20: 80009 | N20: 95305 | R20: 10000 | S20: 37.5 | T20: 75 | U20: 150
B21: Rentenbarwertfaktoren für jährlich vorschüssige Zahlungen (analog BMS Consulting) | L21: 2000000 | M21: 98962 | N21: 117881 | R21: 13000 | S21: 41.5 | T21: 83 | U21: 166
L22: 3000000 | M22: 133441 | N22: 158951 | R22: 16000 | S22: 45.5 | T22: 91 | U22: 182
B23: Jahre | C23: 0.02 | D23: 0.025 | E23: 0.03 | F23: 0.035 | G23: 0.04 | H23: 0.045 | I23: 0.05 | L23: 5000000 | M23: 194094 | N23: 231200 | R23: 19000 | S23: 49.5 | T23: 99 | U23: 198
B24: 1 | C24: 1 | D24: 1 | E24: 1 | F24: 1 | G24: 1 | H24: 1 | I24: 1 | L24: 7500000 | M24: 262407 | N24: 312573 | R24: 22000 | S24: 53.5 | T24: 107 | U24: 214
B25: 10 | C25: 9.162 | D25: 8.971 | E25: 8.786 | F25: 8.608 | G25: 8.435 | H25: 8.269 | I25: 8.108 | L25: 10000000 | M25: 324978 | N25: 387107 | R25: 25000 | S25: 57.5 | T25: 115 | U25: 230
B26: 15 | C26: 13.106 | D26: 12.691 | E26: 12.296 | F26: 11.921 | G26: 11.563 | H26: 11.223 | I26: 10.899 | L26: 15000000 | M26: 439179 | N26: 523140
B27: 20 | C27: 16.678 | D27: 15.979 | E27: 15.324 | F27: 14.71 | G27: 14.134 | H27: 13.593 | I27: 13.085 | L27: 20000000 | M27: 543619 | N27: 647546 | R27: Einsparungen Waldgrundstück (pauschal)
B28: 25 | C28: 19.914 | D28: 18.885 | E28: 17.936 | F28: 17.058 | G28: 16.247 | H28: 15.495 | I28: 14.799 | L28: 25000000 | M28: 641265 | N28: 763860 | R28: 415
B29: 30 | C29: 22.844 | D29: 21.454 | E29: 20.188 | F29: 19.036 | G29: 17.984 | H29: 17.022 | I29: 16.141
B30: 35 | C30: 25.499 | D30: 23.724 | E30: 22.132 | F30: 20.701 | G30: 19.411 | H30: 18.247 | I30: 17.193 | L30: Herstellungskosten [€] | M30: Planungskosten [€] | R30: Einsparungen Landgrundstück (spezifisch)
B31: 40 | C31: 27.903 | D31: 25.73 | E31: 23.808 | F31: 22.102 | G31: 20.584 | H31: 19.23 | I31: 18.017 | L31: =Ausführungskosten!C5 -> 3455436.9 | M31: =1.19*(0.55*interpolation(N22,N23,L22,L23,L31)) -> 114801.5451 | R31: =ROUND(IF(Verfahrensdaten!C71=0.5,1.19*(120+T15)+1.5*T15,IF(Verfahrensdaten!C71=0.55,1.19*(120+T16)+1.5*T16,IF(Verfahrensdaten!C71=0.6,1.19*(120+T16)+1.5*T16,IF(Verfahrensdaten!C71=0.65,1.19*(120+T17)+1.5*T17,IF(Verfahrensdaten!C71=0.7,1.19*(120+T17)+1.5*T17,IF(Verfahrensdaten!C71=0.75,1.19*(2*T18+T18)+1.5*T18,IF(Verfahrensdaten!C71=0.8,1.19*(2*T18+T18)+1.5*T18,IF(Verfahrensdaten!C71=0.85,1.19*(2*T19+T19)+1.5*T19,IF(Verfahrensdaten!C71=0.9,1.19*(2*T19+T19)+1.5*T19,IF(Verfahrensdaten!C71=0.95,1.19*(2*T20+T20)+1.5*T20,IF(Verfahrensdaten!C71=1,1.19*(2*T20+T20)+1.5*T20,IF(Verfahrensdaten!C71=1.05,1.19*(2*T21+T21)+1.5*T21,IF(Verfahrensdaten!C71=1.1,1.19*(2*T21+T21)+1.5*T21,IF(Verfahrensdaten!C71=1.15,1.19*(2*T21+T21)+1.5*T21,IF(Verfahrensdaten!C71=1.2,1.19*(2*T21+T21)+1.5*T21,IF(Verfahrensdaten!C71=1.25,1.19*(2*T21+T21)+1.5*T21,IF(Verfahrensdaten!C71=1.3,1.19*(2*T21+T21)+1.5*T21,IF(Verfahrensdaten!C71=1.35,1.19*(2*T22+T22)+1.5*T22,IF(Verfahrensdaten!C71=1.4,1.19*(2*T22+T22)+1.5*T22,IF(Verfahrensdaten!C71=1.45,1.19*(2*T22+T22)+1.5*T22,IF(Verfahrensdaten!C71=1.5,1.19*(2*T22+T22)+1.5*T22,IF(Verfahrensdaten!C71=1.55,1.19*(2*T22+T22)+1.5*T22,IF(Verfahrensdaten!C71=1.6,1.19*(2*T22+T22)+1.5*T22))))))))))))))))))))))),0) -> 296
B32: 45 | C32: 30.08 | D32: 27.504 | E32: 25.254 | F32: 23.283 | G32: 21.549 | H32: 20.018 | I32: 18.663
B33: 50 | C33: 32.052 | D33: 29.071 | E33: 26.502 | F33: 24.277 | G33: 22.341 | H33: 20.651 | I33: 19.169
L34: Hier die Herstellungskosten "Wegebau" angeben | N34: Hinweis: Hier Funktion "interpolation" -> y1,y2 = untere/obere Planungskosten; x1,x2 untere/obere Herstellungskosten; xn zu interpolierender Wert der Herstellungskosten/anrechenbare Kosten; Rest unverändert lassen
B35: GAP Flächenzahlungen in €/ha (Stand 2019)
B36: 284
B39: Landschaftspflegerische Maßnahmen in der Flurbereinigung
B40: Pflegeintensitätsstufe
B41: 1 | D41: 2 | F41: 3 | H41: 4
B42: Feldgehölz, Gebüsch, Bachuferwald, Erdwand, Quelle etc. | D42: Trockenmauern, Baumreihe, Strauchhecke etc. | F42: Grünland, z.B. Magerrasen, Feucht- und Nasswiesen, Krautstreifen etc. | H42: Obstbaumreihe, Streuobstwiese
L43: Prämienkontrollen GAP
L45: Geprüfte landwirtschaftliche Betriebe pro Jahr
L46: 0.06
B47: Prozentaufschläge | L47: Lohnansatz für Mitarbeiter Landwirtschaft pro Stunde
B48: 0.1 | D48: 0.3 | F48: 0.3 | H48: 0.1 | L48: 15
L49: Durchschnittsgröße landwirtschaftlicher Betrieb in ha
B50: Fiktive Initialpflegekosten Planungsbüro | F50: Ersparte Planungskosten | H50: Ersparte Initialpflegekosten | L50: 64
C51: Pflegeintensitätsstufe 1 | E51: =Verfahrensdaten!C55*(1+B48) -> 0 | F51: =0.1*E51 -> 0 | H51: =E51-Verfahrensdaten!C55 -> 0
C52: Pflegeintensitätsstufe 2 | E52: =Verfahrensdaten!C56*(1+D48) -> 0 | F52: =0.1*E52 -> 0 | H52: =E52-Verfahrensdaten!C56 -> 0
C53: Pflegeintensitätsstufe 3 | E53: =Verfahrensdaten!C57*(1+F48) -> 0 | F53: 0 | H53: =E53-Verfahrensdaten!C57 -> 0
C54: Pflegeintensitätsstufe 4 | E54: =Verfahrensdaten!C58*(1+H48) -> 60140.817 | F54: 6014.0817 | H54: =E54-Verfahrensdaten!C58 -> 5467.347
B55: Summe ersparter Planungs- und Initialpflegekosten | F55: =SUM(F51:I54) -> 11481.4287

Sheet Wertschöpfungsberechnung
B6: Wertschöpfungs-/Wirkungsanalyse für saarländische Flurbereinigungsverfahren
E8: Wirkungsdauer
B9: Nr. | C9: Wertschöpfungsbeitrag | D9: Aktiv ? "Ja" / "Nein" | E9: 25 Jahre | F9: 50 Jahre | G9: Einmalig | H9: Berechnungsform | M9: Wertschöpfung
B10: 1 | C10: Bewirtschaftungsvorteile durch Neuordnung landwirtschaftlicher Nutzflächen | D10: Ja | E10: 110 | H10: x landwirtschaftliche Nutzfläche in ha | M10: =IF(D10="Ja",(E10*Verfahrensdaten!C27)*Kennzahlen!G28,"---") -> 1451494.795 | N10: =SUM(M10:M31) -> 2899215.869
B11: 2 | C11: Steigerung der Holznutzung | D11: Ja | F11: 25 | H11: 1 | I11: 1 | J11: 5 | K11: TRUE | L11: TRUE | M11: =IF(D11="Ja",IF(H11=5,(6*F11*Verfahrensdaten!C28)*Kennzahlen!G33,IF(H11=4,(5*F11*Verfahrensdaten!C28)*Kennzahlen!G33,IF(H11=3,(4*F11*Verfahrensdaten!C28)*Kennzahlen!G33,IF(H11=2,(3*F11*Verfahrensdaten!C28)*Kennzahlen!G33,IF(H11=1,(2*F11*Verfahrensdaten!C28)*Kennzahlen!G33,""))))),"---") -> 265532.615
H12: x Waldfläche in ha
B13: 3 | C13: Bildung größerer Holzlose | D13: Ja | F13: 5 | H13: 2 | M13: =IF(D13="Ja",IF(H13=1,(2*F13*Verfahrensdaten!C28)*Kennzahlen!G33,IF(H13=2,(4*F13*Verfahrensdaten!C28)*Kennzahlen!G33,IF(H13=3,(6*F13*Verfahrensdaten!C28)*Kennzahlen!G33,IF(H13=4,(8*F13*Verfahrensdaten!C28)*Kennzahlen!G33,IF(H13=5,(10*F13*Verfahrensdaten!C28)*Kennzahlen!G33))))),"---") -> 106213.046
H14: x Gesamtnutzung auf Waldfläche in ha
B15: 4 | C15: Senkung der Rückekosten | D15: Ja | F15: =IF(H15=1,0,IF(H15=2,1,IF(H15=3,2.5,IF(H15=4,4,IF(H15=5,10,""))))) -> 1 | H15: 2 | M15: =IF(D15="Ja",IF(H15=1,0,IF(H15=2,(1*Verfahrensdaten!C44*Verfahrensdaten!C28)*Kennzahlen!G33,IF(H15=3,(2.5*Verfahrensdaten!C44*Verfahrensdaten!C28)*Kennzahlen!G33,IF(H15=4,(4*Verfahrensdaten!C44*Verfahrensdaten!C28)*Kennzahlen!G33,IF(H15=5,(10*Verfahrensdaten!C44*Verfahrensdaten!C28)*Kennzahlen!G33,"---"))))),"---") -> 21242.6092
H16: Erschließungsgrad vor der Flurbereinigung, x Gesamtnutzung Holzeinschlag
B17: 5 | C17: Bewirtschaftungsvorteile durch verbessertes Wegenetz | D17: Ja | E17: =IF(Verfahrensdaten!C10="Verfahren nach §91 ff. FlurbG",20,40) -> 20 | H17: Regelverfahren nach §§ 1 und 37 FlurbG 40 €/ha | K17: Andere Verfahrensarten nach FlurbG 20 €/ha | M17: =IF(D17="Ja",(E17*Verfahrensdaten!C27)*Kennzahlen!G28,"---") -> 263908.1445
H18: x landwirtschaftliche Nutzfläche in ha
B19: 6 | C19: Reduzierung der Fußwegezeiten | D19: Ja | F19: =IF(H19=1,0,IF(H19=2,10,IF(H19=3,20,IF(H19=4,30,IF(H19=5,40,""))))) -> 10 | H19: 2 | M19: =IF(D19="Ja",(F19*Verfahrensdaten!C28)*Kennzahlen!G33,"---") -> 53106.52301
H20: Erschließungsgrad vor der Flurbereinigung, x Waldfläche in ha
B21: 7 | C21: Verbesserung der Bestandsqualität durch Zusammenlegung | D21: Ja | F21: =IF(H21=1,0,IF(H21=2,10,IF(H21=3,20,IF(H21=4,30,IF(H21=5,40,""))))) -> 20 | H21: 3 | M21: =IF(D21="Ja",(F21*Verfahrensdaten!C28)*Kennzahlen!G33,"---") -> 106213.046
H22: Zusammenlegungsverhältnis, x Waldfläche in ha
B23: 8 | C23: Reduzierung der Grundstücksrandeffekte | D23: Ja | F23: =IF(H23=1,10,IF(H23=2,20,IF(H23=3,30,""))) -> 20 | H23: 2 | M23: =IF(D23="Ja",(F23*Verfahrensdaten!C28)*Kennzahlen!G33,"---") -> 106213.046
H24: Formverbesserung der Grundstücke
B25: 9 | C25: Verbesserung des Waldzustandes durch Erstdurchforstung | D25: Ja | G25: 200 | H25: x Waldfläche in ha | M25: =IF(D25="Ja",G25*Verfahrensdaten!C28,"---") -> 47541.76
B26: 10 | C26: Erhöhung der Effizienz des Holztransports | D26: Ja | F26: =IF(H26=1,3,IF(H26=2,6,IF(H26=3,9,IF(H26=4,12,IF(H26=5,15,""))))) -> 6 | H26: 2 | M26: =IF(D26="Ja",(F26*Verfahrensdaten!C28)*Kennzahlen!G33,"---") -> 31863.9138
H27: x Gesamtnutzung Holz auf Waldfläche in ha
B28: 11 | C28: Sicherung der Waldbodenwerte | D28: Ja | G28: 1000 | H28: x Waldfläche in ha | M28: =IF(D28="Ja",G28*Verfahrensdaten!C28,"---") -> 237708.8
B29: 12 | C29: Reduzierung der Umzäunungskosten | D29: Ja | F29: =IF(H29=1,0,IF(H29=2,2,IF(H29=3,4,IF(H29=4,8,IF(H29=5,10,""))))) -> 4 | H29: 3 | M29: =IF(D29="Ja",(F29*Verfahrensdaten!C28)*Kennzahlen!G33,"---") -> 21242.6092
H30: Zusammenlegungsverhältnis, x Waldfläche
B31: 13 | C31: Verbesserung der Arbeitssicherheit | D31: Ja | F31: 8.8 | H31: x Gesamtnutzung Holz auf Waldfläche in Fm und ha | M31: =IF(D31="Ja",(F31*Verfahrensdaten!C44*Verfahrensdaten!C28)*Kennzahlen!G33,"---") -> 186934.961
B32: 14 | C32: Regulierung des Wasserregimes | D32: Ja | G32: 10000 | H32: x ausgewiesene Retentionsfläche/Schutzstreifen an Bächen in ha Sachwert sonstiger wasserregulierender Maßnahmen in € | M32: =IF(D32="Ja",(G32*Verfahrensdaten!C46)+Verfahrensdaten!C47,"---") -> 180000 | N32: =SUM(M32:M41) -> 511397.8705
B33: 15 | C33: Erhaltung des Landschaftsbildes | D33: Ja | F33: =Kennzahlen!B36 -> 284 | H33: x offengehaltene Kulturlandschaft in ha | M33: =IF(D33="Ja",(F33*Verfahrensdaten!C48)*Kennzahlen!G33,"---") -> 72965.706
B34: 16 | C34: Sicherung ökologisch wertvoller Gebiete | D34: Ja | F34: 145 | H34: x unterschutzgestellte Flächen des Naturschutzes in ha | M34: =IF(D34="Ja",(F34*Verfahrensdaten!C49)*Kennzahlen!G33,"---") -> 78070.6245
B35: 17 | C35: Förderung und Entwicklung naturnaher Lebensräume und des Biotopverbundes | D35: Ja | F35: 145 | G35: 1450 | H35: Saumvegetation Wegenetz 1450 €/ha Einrichtung von Retentionsflächen/Bachauen in ha (wie 14.) Einrichtung von Waldrandflächen in ha | M35: =IF(AND(D35="Ja",H39=1),(G35*Verfahrensdaten!C53)+(F35*Verfahrensdaten!C46*Kennzahlen!G33)+(F35*Verfahrensdaten!C51*Kennzahlen!G33)+(((Verfahrensdaten!C18-Verfahrensdaten!C60)*19)+(Verfahrensdaten!C55+Verfahrensdaten!C56+Verfahrensdaten!C57+Verfahrensdaten!C58)+Verfahrensdaten!C59),IF(AND(D35="Ja",H39=2),(G35*Verfahrensdaten!C53)+(F35*Verfahrensdaten!C46*Kennzahlen!G33)+(F35*Verfahrensdaten!C51*Kennzahlen!G33)+((Verfahrensdaten!C18-Verfahrensdaten!C60)*19+Kennzahlen!F55+Verfahrensdaten!C59),"---")) -> 147967.09
H38: Sachwert weiterer Biotopflächen in €
H39: 1
B40: 18 | C40: Lenkung der Aufforstung | D40: Nein | G40: 3500 | H40: x Aufforstungsfläche in ha | M40: =IF(D40="Ja",G40*Verfahrensdaten!C50,"---") -> ---
B41: 19 | C41: Beitrag des Waldes zum Klimaschutz | D41: Ja | F41: 145 | H41: x Waldumbaufläche hin zur Bewirtschaftung in ha | M41: =IF(D41="Ja",(F41*Verfahrensdaten!C52)*Kennzahlen!G33,"---") -> 32394.45
B42: 20 | C42: Realisierung/Beschleunigung von Naturschutzprojekten | D42: Nein | G42: =M42 -> --- | H42: 2 | M42: =IF(AND(D42="Ja",H42=1),Verfahrensdaten!C62,IF(AND(D42="Ja",H42=2),(Verfahrensdaten!C62*(1+0.03)^3-Verfahrensdaten!C62),"---")) -> --- | N42: =SUM(M42:M52) -> 4377466.651
B43: 21 | C43: Realisierung/Beschleunigung kommunaler Planungen | D43: Ja | G43: =M43 -> 433155.7696 | H43: 2 | M43: =IF(AND(D43="Ja",H43=1),Verfahrensdaten!C63,IF(AND(D43="Ja",H43=2),(Verfahrensdaten!C63*(1+0.03)^3-Verfahrensdaten!C63),"---")) -> 433155.7696
B44: 22 | C44: Allgemeine Vorteile durch Verbesserung des regionalen Wegenetzes | D44: Ja | G44: =M44 -> 1190079.483 | H44: 1/3 der Planungs-und Herstellungskosten in den regionalen Wegebau in € | M44: =IF(D44="Ja",1/3*(Ausführungskosten!C5+Verfahrensdaten!C64),"---") -> 1190079.483
B45: 23 | C45: Schaffung und Sicherung von Arbeitsplätzen | D45: Ja | G45: =M45 -> 1463797.764 | H45: 41 % der Planungs- und Herstellungskosten in den regionalen Wegebau in € | M45: =IF(D45="Ja",0.41*(Ausführungskosten!C5+Verfahrensdaten!C64),"---") -> 1463797.764
B46: 24 | C46: Vermeidung örtlicher Hochwasserschäden | D46: Nein | F46: =Verfahrensdaten!C66 -> 0 | H46: Jährlich vermiedene Hochwasserschäden in € | M46: =IF(D46="Ja",F46*Kennzahlen!G33,"---") -> ---
B47: 25 | C47: Sicherung von Kulturdenkmälern | D47: Ja | G47: =IF(H47=1,0,IF(H47=2,60,IF(H47=3,150,IF(H47=4,300,IF(H47=5,600,"---"))))) -> 60 | H47: 2 | M47: =IF(D47="Ja",G47*Verfahrensdaten!C18,"---") -> 70211.4
H48: Dichte Bodendenkmäler auf 1.000 ha
B49: 26 | C49: Anlage von Erholungseinrichtungen | D49: Ja | G49: =M49 -> 3142.75 | H49: Sachwert innerhalb Ausführungskosten in € | M49: =IF(D49="Ja",Verfahrensdaten!C67+Verfahrensdaten!C68,"---") -> 3142.75
H50: Sachwert Drittprojekte für Erholungseinrichtungen
B51: 27 | C51: Vorteile für den Rad- und Wanderwegetourismus | D51: Ja | G51: =M51 -> 1190079.483 | H51: 1/3 der Planungs-und Herstellungskosten in den regionalen Wegebau in € | M51: =IF(D51="Ja",1/3*(Ausführungskosten!C5+Verfahrensdaten!C64),"---") -> 1190079.483
B52: 28 | C52: Entwicklung der Energieversorgung (Windenergie) | D52: Ja | G52: 27000 | H52: 27.000 € je Windkraftanlage für die Schaffung der Voraussetzungen auf Privatbesitz | M52: =IF(D52="Ja",G52*Verfahrensdaten!C69,"---") -> 27000
B53: 29 | C53: Verbesserung der Qualität des Liegenschaftskatasters, Grenzsicherheit bei den Eigentümern | D53: Ja | G53: =IF(Verfahrensdaten!C10="Verfahren nach §91 ff. FlurbG",(Verfahrensdaten!C40*2),105) -> 68 | H53: Vorteile für die Grundstückseigentümer durch Neuvermessung/Bewirtschaftungsanzeige in € | M53: =IF(AND(D53="Ja",Verfahrensdaten!C10="Verfahren nach §91 ff. FlurbG"),G53*Verfahrensdaten!C18,(Verfahrensdaten!C29*4*105)*Verfahrensdaten!C36*0.5+(Verfahrensdaten!C29*4*105)*Verfahrensdaten!C37*0.3+(Verfahrensdaten!C29*4*105)*Verfahrensdaten!C38*0.2+(Verfahrensdaten!C29*4*105)*Verfahrensdaten!C39*0.1) -> 79572.92 | N53: =SUM(M53:M58) -> 280814.7645
B54: 30 | C54: Anregung des Grundstücksmarktes und Kostenersparnis bei Landabfindungsverzicht | D54: Ja | G54: =M54 -> 33905.2952 | H54: Einsparungen an Grundbuch- und Notarkosten sowie Einsparungen an Wertermittlungskosten (nur Waldgrundstücke) in € | M54: =IF(D54="Ja",(0.1*Verfahrensdaten!C28*Kennzahlen!R28)+(0.1*Verfahrensdaten!C27*Kennzahlen!R31),"---") -> 33905.2952
B55: 31 | C55: Verringerung der Bürokratiekosten in der Landwirtschaft | D55: Ja | E55: =M55 -> 19751.23166 | H55: Zeitersparnis der Landwirte bei Beantragung der Flächenprämien (GAP) und bei den Prämienkontrollen | M55: =IF(D55="Ja",(Verfahrensdaten!C31*6*Kennzahlen!L48)*Kennzahlen!G28+(Kennzahlen!L46*(Verfahrensdaten!C27/Kennzahlen!L50)*4*Kennzahlen!L48)*Kennzahlen!G28,"---") -> 19751.23166
B56: 32 | C56: Kostenersparnisse bei der Unterhaltung gemeinschaftlicher Anlagen | D56: Nein | G56: =M56 -> --- | H56: Dauer der Unterhaltung durch die TG in Monaten x Unterhaltungskosten in € | M56: =IF(D56="Ja",Verfahrensdaten!C72*Verfahrensdaten!C73,"---") -> ---
B57: 33 | C57: Effizientere Fachberatung, Wissens- und Motivationsgewinn der Privatwaldeigentümer | D57: Ja | F57: 27 | H57: x neugeordnete Waldfläche in ha | M57: =IF(D57="Ja",F57*Verfahrensdaten!C28*Kennzahlen!G33,"---") -> 143387.6121
B58: 34 | C58: Verringerung von Verwaltungsaufwand im Kataster- und Grundbuchamt | D58: Ja | E58: 0.2 | H58: x Verfahrensfläche in ha | M58: =IF(D58="Ja",E58*Verfahrensdaten!C18*Kennzahlen!E28,"---") -> 4197.705568
L60: Monetärer Gesamtnutzen [€] | N60: =SUM(N10:N58) -> 8068895.154

Sheet Wertschöpfungsbilanz
M4: W E R T S C H Ö P F U N G S B E I T R Ä G E N A C H D I M E N S I O N I E R U N G D E S N U T Z E N S
B5: W E R T S C H Ö P F U N G S B I L A N Z
N6: Beitrag | O6: Kategorie | Q6: Bewirtschaftungsvorteile Land- und Forstwirtschaft | S6: Umwelt- und Naturschutz, Landeskultur | U6: Allgemeine Vorteile, Erholung, Regionale Entwicklung | W6: Eigentums- und Rechtssicherheit
B8: K O S T E N | G8: N U T Z E N | N8: Bewirtschaftungsvorteile Landwirtschaft | O8: =IF(AND(Wertschöpfungsberechnung!M10<100000,Wertschöpfungsberechnung!M10>0),1,IF(AND(Wertschöpfungsberechnung!M10<200000,Wertschöpfungsberechnung!M10>99999),2,IF(AND(Wertschöpfungsberechnung!M10<500000,Wertschöpfungsberechnung!M10>199999),3,IF(Wertschöpfungsberechnung!M10="---","---",4)))) -> 4 | Q8: Bewirtschaftungsvorteile Landwirtschaft | R8: =O8 -> 4 | S8: Regulierung Wasserregime | T8: 0 | U8: Naturschutzprojekte | V8: 0 | W8: Verbesserung Liegenschaftskataster | X8: 0
N9: Steigerung Holznutzung | O9: =IF(AND(Wertschöpfungsberechnung!M11<100000,Wertschöpfungsberechnung!M11>0),1,IF(AND(Wertschöpfungsberechnung!M11<200000,Wertschöpfungsberechnung!M11>99999),2,IF(AND(Wertschöpfungsberechnung!M11<500000,Wertschöpfungsberechnung!M11>199999),3,IF(Wertschöpfungsberechnung!M11="---","---",4)))) -> 3 | Q9: Steigerung Holznutzung | R9: =O9 -> 3 | S9: Erhaltung Landschaftsbild | T9: 0 | U9: Kommunale Planungen | V9: 0 | W9: Anregung Grundstücksmarkt | X9: 0
N10: Bildung größerer Holzlose | O10: =IF(AND(Wertschöpfungsberechnung!M13<100000,Wertschöpfungsberechnung!M13>0),1,IF(AND(Wertschöpfungsberechnung!M13<200000,Wertschöpfungsberechnung!M13>99999),2,IF(AND(Wertschöpfungsberechnung!M13<500000,Wertschöpfungsberechnung!M13>199999),3,IF(Wertschöpfungsberechnung!M13="---","---",4)))) -> 2 | Q10: Bildung größerer Holzlose | R10: 2 | S10: Sicherung ökologisch wertvoller Gebiete | T10: 0 | U10: Verbesserung Wegenetz | V10: 0 | W10: Verringerung Bürokratiekosten | X10: 0
B11: Direkte Personalkosten Abteilung 5 - LVGL | G11: Bereich Land- und Forstwirtschaft | N11: Senkung Rückekosten | O11: =IF(AND(Wertschöpfungsberechnung!M15<100000,Wertschöpfungsberechnung!M15>0),1,IF(AND(Wertschöpfungsberechnung!M15<200000,Wertschöpfungsberechnung!M15>99999),2,IF(AND(Wertschöpfungsberechnung!M15<500000,Wertschöpfungsberechnung!M15>199999),3,IF(Wertschöpfungsberechnung!M15="---","---",4)))) -> 1 | Q11: Senkung Rückekosten | R11: 1 | S11: Förderung Biotopverbund | T11: 0 | U11: Regionale Arbeitsplätze | V11: 0 | W11: Kostenersparnisse gem. Anlagen | X11: 0
B12: =Verfahrenskosten!D30 -> 1484725 | G12: =Wertschöpfungsberechnung!N10 -> 2899215.869 | N12: Bewirtschaftungsvorteile durch Wegenetz | O12: =IF(AND(Wertschöpfungsberechnung!M17<100000,Wertschöpfungsberechnung!M17>0),1,IF(AND(Wertschöpfungsberechnung!M17<200000,Wertschöpfungsberechnung!M17>99999),2,IF(AND(Wertschöpfungsberechnung!M17<500000,Wertschöpfungsberechnung!M17>199999),3,IF(Wertschöpfungsberechnung!M17="---","---",4)))) -> 3 | Q12: Bewirtschaftungsvorteile durch Wegenetz | R12: 3 | S12: Lenkung Aufforstung | T12: 0 | U12: Vermeidung Hochwasserschäden | V12: 0 | W12: Fachberatung Privatwaldeigentümer | X12: 0
N13: Reduzierung Fußwegezeiten | O13: =IF(AND(Wertschöpfungsberechnung!M19<100000,Wertschöpfungsberechnung!M19>0),1,IF(AND(Wertschöpfungsberechnung!M19<200000,Wertschöpfungsberechnung!M19>99999),2,IF(AND(Wertschöpfungsberechnung!M19<500000,Wertschöpfungsberechnung!M19>199999),3,IF(Wertschöpfungsberechnung!M19="---","---",4)))) -> 1 | Q13: Reduzierung Fußwegezeiten | R13: 1 | S13: Beitrag Wald Klimaschutz | T13: 0 | U13: Sicherung Kulturdenkmäler | V13: 0 | W13: Verringerung Verwaltungsaufwand | X13: 0
N14: Verbesserung Bestandqualität | O14: =IF(AND(Wertschöpfungsberechnung!M21<100000,Wertschöpfungsberechnung!M21>0),1,IF(AND(Wertschöpfungsberechnung!M21<200000,Wertschöpfungsberechnung!M21>99999),2,IF(AND(Wertschöpfungsberechnung!M21<500000,Wertschöpfungsberechnung!M21>199999),3,IF(Wertschöpfungsberechnung!M21="---","---",4)))) -> 2 | Q14: Verbesserung Bestandqualität | R14: 2 | T14: 0 | U14: Anlage Erholungseinrichtungen | V14: 0 | X14: 0
B15: Sachkosten | G15: Bereich Umwelt- und Naturschutz | N15: Reduzierung Grundstücksrandeffekte | O15: =IF(AND(Wertschöpfungsberechnung!M23<100000,Wertschöpfungsberechnung!M23>0),1,IF(AND(Wertschöpfungsberechnung!M23<200000,Wertschöpfungsberechnung!M23>99999),2,IF(AND(Wertschöpfungsberechnung!M23<500000,Wertschöpfungsberechnung!M23>199999),3,IF(Wertschöpfungsberechnung!M23="---","---",4)))) -> 2 | Q15: Reduzierung Grundstücksrandeffekte | R15: 2 | T15: 0 | U15: Vorteile regionaler Tourismus | V15: 0 | X15: 0
B16: =B12*0.2136 -> 317137.26 | G16: =Wertschöpfungsberechnung!N32 -> 511397.8705 | N16: Verbesserung Waldzustand | O16: =IF(AND(Wertschöpfungsberechnung!M25<100000,Wertschöpfungsberechnung!M25>0),1,IF(AND(Wertschöpfungsberechnung!M25<200000,Wertschöpfungsberechnung!M25>99999),2,IF(AND(Wertschöpfungsberechnung!M25<500000,Wertschöpfungsberechnung!M25>199999),3,IF(Wertschöpfungsberechnung!M25="---","---",4)))) -> 1 | Q16: Verbesserung Waldzustand | R16: 1 | T16: 0 | U16: Entwicklung Energieversorgung | V16: 0 | X16: 0
N17: Effizienz Holztransport | O17: =IF(AND(Wertschöpfungsberechnung!M26<100000,Wertschöpfungsberechnung!M26>0),1,IF(AND(Wertschöpfungsberechnung!M26<200000,Wertschöpfungsberechnung!M26>99999),2,IF(AND(Wertschöpfungsberechnung!M26<500000,Wertschöpfungsberechnung!M26>199999),3,IF(Wertschöpfungsberechnung!M26="---","---",4)))) -> 1 | Q17: Effizienz Holztransport | R17: 1 | T17: 0 | V17: 0 | X17: 0
N18: Sicherung Waldbodenwerte | O18: =IF(AND(Wertschöpfungsberechnung!M28<100000,Wertschöpfungsberechnung!M28>0),1,IF(AND(Wertschöpfungsberechnung!M28<200000,Wertschöpfungsberechnung!M28>99999),2,IF(AND(Wertschöpfungsberechnung!M28<500000,Wertschöpfungsberechnung!M28>199999),3,IF(Wertschöpfungsberechnung!M28="---","---",4)))) -> 3 | Q18: Sicherung Waldbodenwerte | R18: 3 | T18: 0 | V18: 0 | X18: 0
B19: Overheadkosten | G19: Bereich Allgemeinheit, ländliche Entwicklung | N19: Reduzierung Umzäunungskosten | O19: =IF(AND(Wertschöpfungsberechnung!M29<100000,Wertschöpfungsberechnung!M29>0),1,IF(AND(Wertschöpfungsberechnung!M29<200000,Wertschöpfungsberechnung!M29>99999),2,IF(AND(Wertschöpfungsberechnung!M29<500000,Wertschöpfungsberechnung!M29>199999),3,IF(Wertschöpfungsberechnung!M29="---","---",4)))) -> 1 | Q19: Reduzierung Umzäunungskosten | R19: 1 | T19: 0 | V19: 0 | X19: 0
B20: =(B12+B16)*0.0863 -> 155500.713 | G20: =Wertschöpfungsberechnung!N42 -> 4377466.651 | N20: Verbesserung Arbeitssicherheit | O20: =IF(AND(Wertschöpfungsberechnung!M31<100000,Wertschöpfungsberechnung!M31>0),1,IF(AND(Wertschöpfungsberechnung!M31<200000,Wertschöpfungsberechnung!M31>99999),2,IF(AND(Wertschöpfungsberechnung!M31<500000,Wertschöpfungsberechnung!M31>199999),3,IF(Wertschöpfungsberechnung!M31="---","---",4)))) -> 2 | Q20: Verbesserung Arbeitssicherheit | R20: 2 | T20: 0 | V20: 0 | X20: 0
N21: Regulierung Wasserregime | O21: =IF(AND(Wertschöpfungsberechnung!M32<100000,Wertschöpfungsberechnung!M32>0),1,IF(AND(Wertschöpfungsberechnung!M32<200000,Wertschöpfungsberechnung!M32>99999),2,IF(AND(Wertschöpfungsberechnung!M32<500000,Wertschöpfungsberechnung!M32>199999),3,IF(Wertschöpfungsberechnung!M32="---","---",4)))) -> 2 | Q21: Regulierung Wasserregime | R21: 0 | T21: =O21 -> 2 | V21: 0 | X21: 0
N22: Erhaltung Landschaftsbild | O22: =IF(AND(Wertschöpfungsberechnung!M33<100000,Wertschöpfungsberechnung!M33>0),1,IF(AND(Wertschöpfungsberechnung!M33<200000,Wertschöpfungsberechnung!M33>99999),2,IF(AND(Wertschöpfungsberechnung!M33<500000,Wertschöpfungsberechnung!M33>199999),3,IF(Wertschöpfungsberechnung!M33="---","---",4)))) -> 1 | Q22: Erhaltung Landschaftsbild | R22: 0 | T22: =O22 -> 1 | V22: 0 | X22: 0
B23: Ausführungskosten | G23: Bereich Eigentums- und Rechtssicherheit | N23: Sicherung ökologisch wertvoller Gebiete | O23: =IF(AND(Wertschöpfungsberechnung!M34<100000,Wertschöpfungsberechnung!M34>0),1,IF(AND(Wertschöpfungsberechnung!M34<200000,Wertschöpfungsberechnung!M34>99999),2,IF(AND(Wertschöpfungsberechnung!M34<500000,Wertschöpfungsberechnung!M34>199999),3,IF(Wertschöpfungsberechnung!M34="---","---",4)))) -> 1 | Q23: Sicherung ökologisch wertvoller Gebiete | R23: 0 | T23: 1 | V23: 0 | X23: 0
B24: =Ausführungskosten!C19 -> 3526698.23 | G24: =Wertschöpfungsberechnung!N53 -> 280814.7645 | N24: Förderung Biotopverbund | O24: =IF(AND(Wertschöpfungsberechnung!M35<100000,Wertschöpfungsberechnung!M35>0),1,IF(AND(Wertschöpfungsberechnung!M35<200000,Wertschöpfungsberechnung!M35>99999),2,IF(AND(Wertschöpfungsberechnung!M35<500000,Wertschöpfungsberechnung!M35>199999),3,IF(Wertschöpfungsberechnung!M35="---","---",4)))) -> 2 | Q24: Förderung Biotopverbund | R24: 0 | T24: 2 | V24: 0 | X24: 0
N25: Lenkung Aufforstung | O25: =IF(AND(Wertschöpfungsberechnung!M40<100000,Wertschöpfungsberechnung!M40>0),1,IF(AND(Wertschöpfungsberechnung!M40<200000,Wertschöpfungsberechnung!M40>99999),2,IF(AND(Wertschöpfungsberechnung!M40<500000,Wertschöpfungsberechnung!M40>199999),3,IF(Wertschöpfungsberechnung!M40="---","---",4)))) -> --- | Q25: Lenkung Aufforstung | R25: 0 | T25: --- | V25: 0 | X25: 0
N26: Beitrag Wald Klimaschutz | O26: =IF(AND(Wertschöpfungsberechnung!M41<100000,Wertschöpfungsberechnung!M41>0),1,IF(AND(Wertschöpfungsberechnung!M41<200000,Wertschöpfungsberechnung!M41>99999),2,IF(AND(Wertschöpfungsberechnung!M41<500000,Wertschöpfungsberechnung!M41>199999),3,IF(Wertschöpfungsberechnung!M41="---","---",4)))) -> 1 | Q26: Beitrag Wald Klimaschutz | R26: 0 | T26: 1 | V26: 0 | X26: 0
B27: S U M M E | G27: S U M M E | N27: Naturschutzprojekte | O27: =IF(AND(Wertschöpfungsberechnung!M42<100000,Wertschöpfungsberechnung!M42>0),1,IF(AND(Wertschöpfungsberechnung!M42<200000,Wertschöpfungsberechnung!M42>99999),2,IF(AND(Wertschöpfungsberechnung!M42<500000,Wertschöpfungsberechnung!M42>199999),3,IF(Wertschöpfungsberechnung!M42="---","---",4)))) -> --- | Q27: Naturschutzprojekte | R27: 0 | T27: 0 | V27: =O27 -> --- | X27: 0
B28: =B24+B20+B16+B12 -> 5484061.203 | G28: =G24+G20+G16+G12 -> 8068895.154 | N28: Kommunale Planungen | O28: =IF(AND(Wertschöpfungsberechnung!M43<100000,Wertschöpfungsberechnung!M43>0),1,IF(AND(Wertschöpfungsberechnung!M43<200000,Wertschöpfungsberechnung!M43>99999),2,IF(AND(Wertschöpfungsberechnung!M43<500000,Wertschöpfungsberechnung!M43>199999),3,IF(Wertschöpfungsberechnung!M43="---","---",4)))) -> 3 | Q28: Kommunale Planungen | R28: 0 | T28: 0 | V28: =O28 -> 3 | X28: 0
N29: Verbesserung Wegenetz | O29: =IF(AND(Wertschöpfungsberechnung!M44<100000,Wertschöpfungsberechnung!M44>0),1,IF(AND(Wertschöpfungsberechnung!M44<200000,Wertschöpfungsberechnung!M44>99999),2,IF(AND(Wertschöpfungsberechnung!M44<500000,Wertschöpfungsberechnung!M44>199999),3,IF(Wertschöpfungsberechnung!M44="---","---",4)))) -> 4 | Q29: Verbesserung Wegenetz | R29: 0 | T29: 0 | V29: 4 | X29: 0
N30: Regionale Arbeitsplätze | O30: =IF(AND(Wertschöpfungsberechnung!M45<100000,Wertschöpfungsberechnung!M45>0),1,IF(AND(Wertschöpfungsberechnung!M45<200000,Wertschöpfungsberechnung!M45>99999),2,IF(AND(Wertschöpfungsberechnung!M45<500000,Wertschöpfungsberechnung!M45>199999),3,IF(Wertschöpfungsberechnung!M45="---","---",4)))) -> 4 | Q30: Regionale Arbeitsplätze | R30: 0 | T30: 0 | V30: 4 | X30: 0
B31: K O S T E N - N U T Z E N - V E R H Ä L T N I S | N31: Vermeidung Hochwasserschäden | O31: =IF(AND(Wertschöpfungsberechnung!M46<100000,Wertschöpfungsberechnung!M46>0),1,IF(AND(Wertschöpfungsberechnung!M46<200000,Wertschöpfungsberechnung!M46>99999),2,IF(AND(Wertschöpfungsberechnung!M46<500000,Wertschöpfungsberechnung!M46>199999),3,IF(Wertschöpfungsberechnung!M46="---","---",4)))) -> --- | Q31: Vermeidung Hochwasserschäden | R31: 0 | T31: 0 | V31: --- | X31: 0
B32: 1 | F32: : | G32: =G28/B28 -> 1.471335723 | N32: Sicherung Kulturdenkmäler | O32: =IF(AND(Wertschöpfungsberechnung!M47<100000,Wertschöpfungsberechnung!M47>0),1,IF(AND(Wertschöpfungsberechnung!M47<200000,Wertschöpfungsberechnung!M47>99999),2,IF(AND(Wertschöpfungsberechnung!M47<500000,Wertschöpfungsberechnung!M47>199999),3,IF(Wertschöpfungsberechnung!M47="---","---",4)))) -> 1 | Q32: Sicherung Kulturdenkmäler | R32: 0 | T32: 0 | V32: 1 | X32: 0
N33: Anlage Erholungseinrichtungen | O33: =IF(AND(Wertschöpfungsberechnung!M49<100000,Wertschöpfungsberechnung!M49>0),1,IF(AND(Wertschöpfungsberechnung!M49<200000,Wertschöpfungsberechnung!M49>99999),2,IF(AND(Wertschöpfungsberechnung!M49<500000,Wertschöpfungsberechnung!M49>199999),3,IF(Wertschöpfungsberechnung!M49="---","---",4)))) -> 1 | Q33: Anlage Erholungseinrichtungen | R33: 0 | T33: 0 | V33: 1 | X33: 0
N34: Vorteile regionaler Tourismus | O34: =IF(AND(Wertschöpfungsberechnung!M51<100000,Wertschöpfungsberechnung!M51>0),1,IF(AND(Wertschöpfungsberechnung!M51<200000,Wertschöpfungsberechnung!M51>99999),2,IF(AND(Wertschöpfungsberechnung!M51<500000,Wertschöpfungsberechnung!M51>199999),3,IF(Wertschöpfungsberechnung!M51="---","---",4)))) -> 4 | Q34: Vorteile regionaler Tourismus | R34: 0 | T34: 0 | V34: 4 | X34: 0
N35: Entwicklung Energieversorgung | O35: =IF(AND(Wertschöpfungsberechnung!M52<100000,Wertschöpfungsberechnung!M52>0),1,IF(AND(Wertschöpfungsberechnung!M52<200000,Wertschöpfungsberechnung!M52>99999),2,IF(AND(Wertschöpfungsberechnung!M52<500000,Wertschöpfungsberechnung!M52>199999),3,IF(Wertschöpfungsberechnung!M52="---","---",4)))) -> 1 | Q35: Entwicklung Energieversorgung | R35: 0 | T35: 0 | V35: 1 | X35: 0
E36: ̇ | N36: Verbesserung Liegenschaftskataster | O36: =IF(AND(Wertschöpfungsberechnung!M53<100000,Wertschöpfungsberechnung!M53>0),1,IF(AND(Wertschöpfungsberechnung!M53<200000,Wertschöpfungsberechnung!M53>99999),2,IF(AND(Wertschöpfungsberechnung!M53<500000,Wertschöpfungsberechnung!M53>199999),3,IF(Wertschöpfungsberechnung!M53="---","---",4)))) -> 1 | Q36: Verbesserung Liegenschaftskataster | R36: 0 | T36: 0 | V36: 0 | X36: =O36 -> 1
N37: Anregung Grundstücksmarkt | O37: =IF(AND(Wertschöpfungsberechnung!M54<100000,Wertschöpfungsberechnung!M54>0),1,IF(AND(Wertschöpfungsberechnung!M54<200000,Wertschöpfungsberechnung!M54>99999),2,IF(AND(Wertschöpfungsberechnung!M54<500000,Wertschöpfungsberechnung!M54>199999),3,IF(Wertschöpfungsberechnung!M54="---","---",4)))) -> 1 | Q37: Anregung Grundstücksmarkt | R37: 0 | T37: 0 | V37: 0 | X37: =O37 -> 1
N38: Verringerung Bürokratiekosten | O38: =IF(AND(Wertschöpfungsberechnung!M55<100000,Wertschöpfungsberechnung!M55>0),1,IF(AND(Wertschöpfungsberechnung!M55<200000,Wertschöpfungsberechnung!M55>99999),2,IF(AND(Wertschöpfungsberechnung!M55<500000,Wertschöpfungsberechnung!M55>199999),3,IF(Wertschöpfungsberechnung!M55="---","---",4)))) -> 1 | Q38: Verringerung Bürokratiekosten | R38: 0 | T38: 0 | V38: 0 | X38: 1
N39: Kostenersparnisse gem. Anlagen | O39: =IF(AND(Wertschöpfungsberechnung!M56<100000,Wertschöpfungsberechnung!M56>0),1,IF(AND(Wertschöpfungsberechnung!M56<200000,Wertschöpfungsberechnung!M56>99999),2,IF(AND(Wertschöpfungsberechnung!M56<500000,Wertschöpfungsberechnung!M56>199999),3,IF(Wertschöpfungsberechnung!M56="---","---",4)))) -> --- | Q39: Kostenersparnisse gem. Anlagen | R39: 0 | T39: 0 | V39: 0 | X39: ---
N40: Fachberatung Privatwaldeigentümer | O40: =IF(AND(Wertschöpfungsberechnung!M57<100000,Wertschöpfungsberechnung!M57>0),1,IF(AND(Wertschöpfungsberechnung!M57<200000,Wertschöpfungsberechnung!M57>99999),2,IF(AND(Wertschöpfungsberechnung!M57<500000,Wertschöpfungsberechnung!M57>199999),3,IF(Wertschöpfungsberechnung!M57="---","---",4)))) -> 2 | Q40: Fachberatung Privatwaldeigentümer | R40: 0 | T40: 0 | V40: 0 | X40: 2
N41: Verringerung Verwaltungsaufwand | O41: =IF(AND(Wertschöpfungsberechnung!M58<100000,Wertschöpfungsberechnung!M58>0),1,IF(AND(Wertschöpfungsberechnung!M58<200000,Wertschöpfungsberechnung!M58>99999),2,IF(AND(Wertschöpfungsberechnung!M58<500000,Wertschöpfungsberechnung!M58>199999),3,IF(Wertschöpfungsberechnung!M58="---","---",4)))) -> 1 | Q41: Verringerung Verwaltungsaufwand | R41: 0 | T41: 0 | V41: 0 | X41: 1

Sheet Allg. Wertschöpfungsmodell
C2: Wertschöpfungsmodell für saarländische Flurbereinigungsverfahren
C4: Nr. | D4: Wertschöpfungsbereich | E4: Wertschöpfungsbeitrag | F4: Grundlage
C5: 1 | D5: Neue Bewirtschaftungsmöglichkeiten in der Land- und Forstwirtschaft | E5: Bewirtschaftungsvorteile durch Neuordnung landwirtschaftlicher Nutzflächen | F5: BMS
C6: 2 | E6: Steigerung der Holznutzung | F6: Hinz
C7: 3 | E7: Bildung größerer Holzlose | F7: Hinz
C8: 4 | E8: Senkung der Rückekosten | F8: Hinz
C9: 5 | E9: Bewirtschaftungsvorteile durch verbessertes Wegenetz | F9: BMS
C10: 6 | E10: Reduzierung der Fußwegezeiten | F10: Hinz
C11: 7 | E11: Verbesserung der Bestandsqualität durch Zusammenlegung | F11: Hinz
C12: 8 | E12: Reduzierung der Grundstücksrandeffekte | F12: Hinz
C13: 9 | E13: Verbesserung des Waldzustandes durch Erstdurchforstung | F13: Hinz
C14: 10 | E14: Erhöhung der Effizienz des Holztransports | F14: Hinz
C15: 11 | E15: Sicherung der Waldbodenwerte | F15: Hinz
C16: 12 | E16: Reduzierung der Umzäunungskosten | F16: Hinz
C17: 13 | E17: Verbesserung der Arbeitssicherheit | F17: Hinz
C18: 14 | D18: Förderung von Umwelt- und Naturschutz, Erhaltung der allgemeinen Landeskultur | E18: Regulierung des Wasserregimes | F18: Hinz
C19: 15 | E19: Erhaltung des Landschaftsbildes | F19: BMS/Hinz gleich
C20: 16 | E20: Sicherung ökologisch wertvoller Gebiete | F20: Hinz
C21: 17 | E21: Förderung und Entwicklung naturnaher Lebensräume und des Biotopverbundes | F21: BMS/Hinz
C22: 18 | E22: Lenkung der Aufforstung | F22: Hinz
C23: 19 | E23: Beitrag des Waldes zum Klimaschutz | F23: Hinz
C24: 20 | D24: Vorteile für die Allgemeinheit, Steigerung der Erholungsfunktion, Stärkung ländlicher Regionen | E24: Realisierung/Beschleunigung von Naturschutzprojekten | F24: BMS
C25: 21 | E25: Realisierung/Beschleunigung kommunaler Planungen | F25: BMS
C26: 22 | E26: Allgemeine Vorteile durch Verbesserung des regionalen Wegenetzes | F26: BMS
C27: 23 | E27: Schaffung und Sicherung von Arbeitsplätzen | F27: Hinz
C28: 24 | E28: Vermeidung örtlicher Hochwasserschäden | F28: BMS
C29: 25 | E29: Sicherung von Kulturdenkmälern | F29: Hinz
C30: 26 | E30: Anlage von Erholungseinrichtungen | F30: BMS/Hinz
C31: 27 | E31: Vorteile für den Rad- und Wanderwegetourismus | F31: BMS
C32: 28 | E32: Entwicklung der Energieversorgung (Windenergie) | F32: Hinz
C33: 29 | D33: Eigentums- und Rechtssicherheit, Vorteile für die öffentliche Hand (Bund-Land-Kommune) | E33: Verbesserung der Qualität des Liegenschaftskatasters, Grenzsicherheit bei den Eigentümern | F33: BMS
C34: 30 | E34: Anregung des Grundstücksmarktes und Gebühreneinsparungen | F34: Hinz
C35: 31 | E35: Verringerung der Bürokratiekosten in der Landwirtschaft | F35: BMS
C36: 32 | E36: Kostenersparnisse bei der Unterhaltung gemeinschaftlicher Anlagen | F36: BMS
C37: 33 | E37: Effizientere Fachberatung, Wissens- und Motivationsgewinn der Privatwaldeigentümer | F37: Hinz
C38: 34 | E38: Verringerung von Verwaltungsaufwand im Kataster- und Grundbuchamt | F38: BMS/Hinz
